bitfinex/quotes_ETHUSD_20250324
["timestamp","ask_amount","ask_price","bid_price","bid_amount"]
[1742836358675,4.7873,2088.9,2088.5,9.56899]
[1742836359292,4.7873,2088.9,2088.5,4.781]
[1742836359667,5.57834,2088.7,2088.6,4.796]
[1742836359870,0.7905,2088.7,2088.6,4.796]
[1742836360260,0.7905,2088.7,2088.6,4.794]
[1742836361185,2.42987828,2088.7,2088.1,4.78903]
[1742836361416,2.42987828,2088.7,2088.2,9.57971]
[1742836361417,4.78801,2088.6,2088.2,9.57971]
[1742836361693,7.21755828,2088.7,2088.2,14.36829]
[1742836361863,12.00540828,2088.7,2088.2,14.36829]
[1742836362057,7.21755828,2088.7,2088.2,9.57958]
[1742836362286,4.78795,2088.6,2088.2,9.57958]
[1742836362504,4.7882,2088.5,2088.2,4.791]
[1742836362677,4.78858,2088.3,2087.9,4.78937]
[1742836362885,4.78858,2088.3,2088.0,4.789]
[1742836363085,4.78837,2088.4,2088.0,9.57824]
[1742836363279,5.98875283,2088.5,2088.0,9.57814]
[1742836363700,5.98875283,2088.5,2088.1,4.7889]
[1742836364001,10.77705283,2088.5,2088.1,4.7889]
[1742836364200,4.78836,2088.4,2088.0,9.57822]
[1742836364974,4.78836,2088.4,2088.0,14.36736]
[1742836365569,4.78836,2088.4,2088.0,9.57814]
[1742836365771,4.78858,2088.3,2088.0,4.789]
[1742836365976,4.78841,2088.4,2088.0,4.789]
[1742836366303,5.98873283,2088.5,2088.1,9.56794]
[1742836366802,4.78836,2088.4,2088.1,9.56794]
[1742836367005,4.78836,2088.4,2088.1,4.779]
[1742836369510,4.78843,2088.4,2088.1,4.779]
[1742836370317,5.98873283,2088.5,2088.1,9.56803]
[1742836370612,9.57691,2088.4,2088.1,4.779]
[1742836371212,4.78835,2088.4,2088.1,4.779]
[1742836371418,7.78794,2088.6,2088.1,9.56795]
[1742836371609,4.78812,2088.5,2088.1,9.56796]
[1742836371913,4.78812,2088.5,2088.1,9.5679]
[1742836373019,4.78812,2088.5,2088.1,4.779]
[1742836373224,4.78836,2088.4,2088.1,4.779]
[1742836373887,3.0,2088.6,2088.2,4.7887]
[1742836374087,7.78797,2088.6,2088.2,4.7887]
[1742836374618,4.78816,2088.5,2088.1,9.56802]
[1742836375217,7.78794,2088.6,2088.1,9.56786]
[1742836375422,7.78794,2088.6,2088.1,4.779]
[1742836375811,12.576,2088.6,2088.1,9.56789]
[1742836376192,7.78794,2088.6,2088.1,14.35679]
[1742836376491,4.78822,2088.5,2088.1,9.56789]
[1742836377722,4.78822,2088.5,2088.1,4.779]
[1742836377928,4.78844,2088.4,2088.1,4.779]
[1742836378629,9.57697,2088.4,2088.1,4.779]
[1742836378837,4.78859,2088.3,2088.1,4.779]
[1742836379001,4.78844,2088.4,2088.1,4.779]
[1742836379330,4.78859,2088.3,2088.1,4.779]
[1742836379709,5.567214,2088.4,2088.1,4.779]
[1742836379921,4.78861,2088.3,2088.1,4.779]
[1742836380402,9.57736,2088.3,2088.1,4.779]
[1742836380600,0.778844,2088.4,2087.7,30.09393]
[1742836380601,4.78915,2088.1,2087.7,30.09393]
[1742836380810,9.5784,2088.1,2087.8,4.742]
[1742836381002,4.78927,2088.0,2087.7,25.304]
[1742836381220,4.78934,2088.0,2087.4,6.0299969]
[1742836381438,4.78934,2088.0,2087.8,4.744]
[1742836382140,0.8198,2087.9,2087.2,30.10389]
[1742836382340,5.60945,2087.9,2087.4,4.79044]
[1742836382631,5.60945,2087.9,2087.4,9.58093]
[1742836382836,2.579424,2087.9,2087.2,25.313]
[1742836383001,4.79037,2087.6,2087.3,4.743]
[1742836383203,7.78985,2087.8,2087.3,4.743]
[1742836383399,7.78985,2087.8,2087.4,4.79056]
[1742836383708,4.78985,2087.8,2087.3,9.53368]
[1742836383930,4.79028,2087.6,2087.3,4.743]
[1742836384335,4.79028,2087.6,2087.4,4.744]
[1742836384515,4.78996,2087.7,2087.4,4.744]
[1742836384926,4.79021,2087.6,2087.4,4.744]
[1742836385825,5.966875,2087.8,2087.4,4.744]
[1742836386505,4.78996,2087.7,2087.4,4.744]
[1742836386707,4.78991,2087.8,2087.4,4.744]
[1742836387105,0.8198,2087.9,2087.4,10.46821741]
[1742836387405,4.78939,2088.0,2087.5,4.79031]
[1742836387841,5.61663,2088.1,2087.4,9.53464]
[1742836387842,4.78959,2087.9,2087.4,4.744]
[1742836388021,4.78986,2087.8,2087.4,4.744]
[1742836388235,5.61748,2087.7,2087.4,4.744]
[1742836389047,4.79028,2087.6,2087.4,4.744]
[1742836389256,4.79077,2087.4,2087.2,25.313]
[1742836389426,4.79041,2087.5,2087.3,4.742]
[1742836389731,9.58149,2087.4,2087.2,25.313]
[1742836389935,4.79064,2087.4,2087.3,4.74]
[1742836390343,4.79045,2087.5,2087.3,4.74]
[1742836390513,4.79019,2087.6,2087.3,4.74]
[1742836391121,9.58052,2087.6,2087.3,4.74]
[1742836391323,4.79042,2087.5,2087.3,4.74]
[1742836391521,4.79064,2087.4,2087.3,4.74]
[1742836392950,4.79043,2087.5,2087.3,4.74]
[1742836393119,9.581,2087.5,2087.3,4.74]
[1742836393824,4.79064,2087.4,2087.3,4.74]
[1742836394021,1.6028442,2087.4,2087.3,4.74]
[1742836394258,6.447012,2087.6,2087.3,4.74]
[1742836394423,11.77765,2087.7,2087.3,4.74]
[1742836395344,16.56772,2087.7,2087.3,4.74]
[1742836395532,11.77757,2087.7,2087.3,4.74]
[1742836396528,6.9875,2087.7,2087.3,9.53085]
[1742836396749,6.16,2087.7,2087.3,9.53085]
[1742836397751,6.16,2087.7,2087.5,4.79031]
[1742836398125,6.16,2087.7,2087.4,4.79064]
[1742836399119,4.78952,2087.9,2087.4,4.79064]
[1742836399953,4.78975,2087.8,2087.4,4.79064]
[1742836401066,4.78975,2087.8,2087.3,9.53087]
[1742836401067,9.57969,2087.8,2087.3,9.53087]
[1742836401444,4.78975,2087.8,2087.3,14.32159]
[1742836401644,4.78975,2087.8,2087.4,4.79056]
[1742836402059,4.78975,2087.8,2087.3,9.53082]
[1742836402245,4.78998,2087.7,2087.3,9.53082]
[1742836402552,0.8123,2087.7,2087.3,4.74]
[1742836402769,9.58072,2087.6,2087.3,4.74]
[1742836402979,10.620022,2087.6,2087.3,4.74]
[1742836403464,4.79043,2087.5,2087.3,4.74]
[1742836403660,4.79043,2087.5,2087.0,10.8215569]
[1742836403661,4.79043,2087.5,2087.0,10.8214969]
[1742836403857,4.79043,2087.5,2087.1,4.79129]
[1742836404057,4.79043,2087.5,2087.2,4.709]
[1742836404265,4.79043,2087.5,2087.3,4.708]
[1742836404579,4.79102,2087.3,2087.0,6.0299969]
[1742836404878,4.79102,2087.3,2087.1,4.714]
[1742836405111,1.1432232,2087.5,2087.1,4.714]
[1742836405289,10.95027,2087.6,2087.2,4.79099]
[1742836407545,6.16,2087.6,2087.4,4.79048]
[1742836407784,6.16,2087.6,2087.5,4.79041]
[1742836407993,4.78953,2087.9,2087.5,4.79041]
[1742836408156,9.57921,2087.9,2087.6,4.715]
[1742836408482,4.78953,2087.9,2087.6,4.715]
[1742836408657,9.57923,2087.9,2087.6,4.715]
[1742836408987,6.23362542,2087.9,2087.6,4.715]
[1742836409479,1.44409542,2087.9,2087.6,4.715]
[1742836409665,11.77678,2088.0,2087.6,9.50514]
[1742836410394,16.56624,2088.0,2087.6,4.715]
[1742836410553,4.78959,2087.9,2087.6,4.715]
[1742836411784,16.56615,2088.0,2087.6,4.715]
[1742836412361,11.77678,2088.0,2087.6,4.715]
[1742836412550,16.56623,2088.0,2087.6,4.715]
[1742836412752,4.78953,2087.9,2087.6,4.715]
[1742836413252,16.56624,2088.0,2087.6,4.715]
[1742836413481,11.77678,2088.0,2087.6,4.715]
[1742836413680,4.78951,2087.9,2087.6,4.715]
[1742836414462,11.883928,2088.0,2087.6,4.715]
[1742836414646,4.7895,2087.9,2087.6,4.715]
[1742836415694,9.57911,2087.9,2087.6,4.715]
[1742836415855,9.57922,2087.9,2087.6,4.715]
[1742836416056,4.7895,2087.9,2087.6,4.715]
[1742836416258,4.79007,2087.7,2087.1,4.79111]
[1742836416566,4.79007,2087.7,2087.2,9.48407]
[1742836416567,4.79006,2087.7,2087.2,9.48407]
[1742836417294,4.79006,2087.7,2087.3,4.694]
[1742836417589,4.79024,2087.6,2087.3,4.694]
[1742836417883,6.58067,2087.6,2087.4,4.694]
[1742836421795,4.79041,2087.5,2087.4,4.694]
[1742836422294,6.58068,2087.6,2087.4,4.694]
[1742836424192,0.8324,2087.6,2087.4,4.694]
[1742836424396,10.94984,2087.8,2087.4,4.694]
[1742836424696,6.16,2087.8,2087.4,9.48455]
[1742836425195,6.16,2087.8,2087.4,4.694]
[1742836425196,10.94987,2087.8,2087.4,4.694]
[1742836425567,4.78987,2087.8,2087.4,4.694]
[1742836426166,9.57978,2087.8,2087.4,4.694]
[1742836426362,4.78987,2087.8,2087.4,4.694]
[1742836426667,4.78987,2087.8,2087.4,9.48463]
[1742836426984,10.3901,2087.9,2087.4,9.48463]
[1742836427174,5.60041,2087.9,2087.4,9.48463]
[1742836427378,4.78983,2087.8,2087.4,4.694]
[1742836427689,4.78983,2087.8,2087.4,9.48461]
[1742836427999,4.78983,2087.8,2087.4,4.694]
[1742836428802,9.57975,2087.8,2087.4,4.694]
[1742836429011,4.78983,2087.8,2087.4,4.694]
[1742836429472,10.39012,2087.9,2087.4,9.48456]
[1742836429679,4.78976,2087.8,2087.4,9.48456]
[1742836429896,4.78976,2087.8,2087.4,4.694]
[1742836430065,5.60041,2087.9,2087.5,4.79039]
[1742836430266,8.88923,2088.1,2087.4,4.694]
[1742836430267,0.55,2088.1,2087.6,0.04790246]
[1742836430497,0.55,2088.1,2087.9,4.78936]
[1742836430803,0.55,2088.1,2088.0,4.676]
[1742836431869,4.78939,2088.0,2087.5,4.7902]
[1742836432073,9.57887,2088.0,2087.6,4.673]
[1742836432291,4.78939,2088.0,2087.6,4.673]
[1742836433105,4.78939,2088.0,2087.6,9.46316]
[1742836434111,4.78939,2088.0,2087.6,4.673]
[1742836435092,4.78951,2087.9,2087.4,4.79059]
[1742836435292,4.78951,2087.9,2087.5,4.676]
[1742836436092,5.705549,2088.0,2087.5,9.46637]
[1742836436298,6.16187,2088.1,2087.6,4.7901]
[1742836436482,10.95108,2088.1,2087.6,4.7901]
[1742836437388,4.78931,2088.0,2087.5,9.46637]
[1742836437709,4.78954,2087.9,2087.3,4.79065]
[1742836437910,4.78996,2087.7,2087.4,4.67]
[1742836438284,4.78974,2087.8,2087.4,4.67]
[1742836439284,4.78974,2087.8,2087.4,9.46063]
[1742836439710,5.59399,2087.7,2087.4,4.67]
[1742836439918,4.79028,2087.6,2087.5,4.67]
[1742836440116,5.828705,2087.6,2087.5,4.67]
[1742836440615,4.79045,2087.5,2087.0,4.79141]
[1742836440794,5.59399,2087.7,2087.2,4.79105]
[1742836440996,6.918,2087.9,2087.5,4.79028]
[1742836441211,0.758,2087.9,2087.6,4.669]
[1742836441407,0.55,2088.1,2088.0,4.78927]
[1742836444696,0.55,2088.1,2087.9,4.78939]
[1742836445424,0.55,2088.1,2088.0,4.78927]
[1742836448405,0.55,2088.1,2088.0,4.8371561]
[1742836448600,0.55,2088.1,2088.0,13.867153]
[1742836448830,0.55,2088.1,2088.0,13.8192669]
[1742836449400,10.94686,2089.1,2088.6,4.78777]
[1742836449626,10.94686,2089.1,2088.7,4.666]
[1742836449796,5.53899,2088.9,2088.7,4.666]
[1742836450000,4.78743,2088.8,2088.7,4.666]
[1742836450201,5.820072,2088.8,2088.7,4.666]
[1742836450397,10.94645,2089.3,2088.7,4.666]
[1742836450627,5.53824,2089.2,2088.7,9.45352]
[1742836450934,0.7517,2089.2,2088.7,9.45352]
[1742836451322,5.53831,2089.2,2088.7,9.45352]
[1742836451720,5.53831,2089.2,2088.7,4.666]
[1742836451936,1.169831,2089.1,2088.7,4.666]
[1742836452131,5.956671,2089.1,2088.7,4.666]
[1742836452432,1.169831,2089.1,2088.7,4.666]
[1742836452730,0.7517,2089.2,2088.7,4.666]
[1742836452933,0.7517,2089.2,2088.8,4.78734]
[1742836455241,0.7517,2089.2,2088.7,9.45366]
[1742836455439,0.7517,2089.2,2088.7,14.24124]
[1742836455611,0.7517,2089.2,2088.8,4.78743]
[1742836456054,0.7517,2089.2,2088.9,4.78718]
[1742836456415,1.921483,2089.2,2088.8,4.78743]
[1742836456642,1.921483,2089.2,2088.7,9.4536]
[1742836457011,6.708063,2089.2,2088.7,9.4536]
[1742836457342,1.921483,2089.2,2088.7,14.24111]
[1742836457742,1.921483,2089.2,2088.7,14.24105]
[1742836457947,1.2867843,2089.1,2088.7,9.45351]
[1742836458331,1.2867843,2089.1,2088.7,4.666]
[1742836459048,1.2867843,2089.1,2088.7,9.45365]
[1742836460553,1.2867843,2089.1,2088.8,4.78742]
[1742836460752,5.53825,2089.2,2088.9,4.78709]
[1742836460753,0.7517,2089.2,2088.9,4.78709]
[1742836461743,0.7517,2089.2,2088.8,4.78728]
[1742836461929,0.7517,2089.2,2088.8,9.57457]
[1742836462124,0.7517,2089.2,2088.8,4.78728]
[1742836462321,0.7932,2088.9,2088.4,10.8181369]
[1742836462651,0.7932,2088.9,2088.4,6.0299969]
[1742836462864,0.7932,2088.9,2088.5,4.644]
[1742836463066,5.58058,2088.9,2088.5,4.644]
[1742836464750,0.7932,2088.9,2088.6,4.78775]
[1742836464927,0.7932,2088.9,2088.6,9.57548]
[1742836465133,0.7932,2088.9,2088.7,4.78764]
[1742836465369,4.78675,2089.1,2088.7,4.78764]
[1742836465532,7.3451185,2089.1,2088.7,4.78764]
[1742836466063,7.3451185,2089.1,2088.5,9.43207]
[1742836466064,4.78726,2088.9,2088.5,9.43207]
[1742836467163,4.78726,2088.9,2088.5,14.22003]
[1742836467935,4.78726,2088.9,2088.5,9.43196]
[1742836468137,4.78753,2088.8,2088.5,4.644]
[1742836468337,4.78753,2088.8,2088.3,7.78837]
[1742836468338,4.78769,2088.7,2088.6,4.638]
[1742836469836,0.8066,2088.8,2088.6,4.638]
[1742836470272,5.59413,2088.8,2088.6,4.638]
[1742836470833,0.8066,2088.8,2088.6,4.638]
[1742836471042,0.8066,2089.0,2088.7,4.78765]
[1742836471370,4.7872,2088.9,2088.6,4.638]
[1742836472234,9.5746,2088.9,2088.6,4.638]
[1742836472439,4.78766,2088.7,2088.6,4.638]
[1742836472688,5.56026,2088.7,2088.6,4.638]
[1742836479402,4.78746,2088.8,2088.6,4.638]
[1742836479685,16.5644,2088.9,2088.6,4.638]
[1742836479868,9.57506,2088.8,2088.6,4.638]
[1742836480068,4.78746,2088.8,2088.6,4.638]
[1742836480269,4.78766,2088.7,2088.6,4.638]
[1742836482003,4.78746,2088.8,2088.6,4.638]
[1742836483092,4.78744,2088.8,2088.6,4.638]
[1742836483256,13.58055998,2088.9,2088.6,4.638]
[1742836483660,4.78744,2088.8,2088.6,4.638]
[1742836484083,9.57506,2088.8,2088.6,4.638]
[1742836484372,4.78744,2088.8,2088.6,4.638]
[1742836486259,6.77132798,2088.8,2088.6,4.638]
[1742836486466,4.78766,2088.7,2088.6,4.638]
[1742836487665,6.77135798,2088.8,2088.6,4.638]
[1742836488207,4.78766,2088.7,2088.6,4.638]
[1742836489398,6.6425418,2088.7,2088.6,4.638]
[1742836491977,4.78766,2088.7,2088.6,4.638]
[1742836492495,3.55,2088.8,2088.1,4.78898]
[1742836492698,4.7882,2088.5,2088.2,4.616]
[1742836493877,4.78799,2088.6,2088.2,9.4048]
[1742836494289,9.57606,2088.6,2088.2,9.4048]
[1742836494607,4.78814,2088.5,2088.2,4.616]
[1742836495998,9.57647,2088.5,2088.2,4.616]
[1742836496190,5.58307,2088.4,2088.3,4.616]
[1742836496568,4.78858,2088.3,2087.9,4.78942]
[1742836496778,4.78858,2088.3,2088.0,4.616]
[1742836496973,4.78858,2088.3,2088.1,4.616]
[1742836497207,4.78858,2088.3,2088.2,4.616]
[1742836497399,4.78858,2088.3,2087.9,4.78933]
[1742836497601,4.78858,2088.3,2088.0,4.616]
[1742836497988,10.94866,2088.3,2088.1,4.616]
[1742836498299,6.16,2088.3,2088.1,4.616]
[1742836498684,10.94859,2088.3,2088.1,4.616]
[1742836498999,15.73727,2088.3,2088.1,4.616]
[1742836499374,4.78881,2088.2,2088.1,4.616]
[1742836499607,10.94871,2088.3,2088.1,4.616]
[1742836500178,6.16,2088.3,2088.1,4.616]
[1742836500706,6.16,2088.3,2088.2,4.616]
[1742836501929,11.74308,2088.4,2088.2,4.616]
[1742836502326,4.78858,2088.3,2088.2,4.616]
[1742836503525,11.74312,2088.4,2088.2,4.616]
[1742836503679,4.78858,2088.3,2088.2,4.616]
[1742836505717,6.16,2088.4,2088.2,4.616]
[1742836505987,10.94767,2088.7,2088.3,4.78849]
[1742836506416,15.7355,2088.7,2088.3,4.78849]
[1742836506616,10.94767,2088.7,2088.3,4.78849]
[1742836506815,15.73549,2088.7,2088.3,4.78849]
[1742836507187,4.78793,2088.6,2088.2,14.19342]
[1742836507383,10.94767,2088.7,2088.3,4.78847]
[1742836507617,10.94767,2088.7,2088.3,4.78846]
[1742836509131,15.73551,2088.7,2088.3,4.78846]
[1742836509337,15.73551,2088.7,2088.2,14.19352]
[1742836509492,15.73551,2088.7,2088.3,4.78851]
[1742836509493,10.94767,2088.7,2088.3,4.78851]
[1742836509822,4.78803,2088.6,2088.2,4.616]
[1742836510023,4.78819,2088.5,2088.3,4.616]
[1742836510228,4.78803,2088.6,2088.3,4.616]
[1742836510424,4.78837,2088.4,2088.0,4.78924]
[1742836510632,4.78837,2088.4,2088.1,4.616]
[1742836510988,10.40403,2088.5,2088.1,4.616]
[1742836511187,5.61575,2088.5,2088.1,9.40502]
[1742836511743,4.78793,2088.6,2088.2,4.78878]
[1742836512435,11.70748,2088.7,2088.3,4.78857]
[1742836512853,10.94778,2088.7,2088.3,4.78857]
[1742836513452,10.94778,2088.7,2088.3,4.7885]
[1742836513802,10.94778,2088.7,2088.2,4.78879]
[1742836514050,15.73566,2088.7,2088.2,4.78879]
[1742836514232,4.78789,2088.6,2088.2,4.78879]
[1742836514436,9.57596,2088.6,2088.1,9.40501]
[1742836514644,4.78789,2088.6,2088.1,14.19392]
[1742836515028,10.34644,2088.6,2088.1,14.19392]
[1742836515559,5.55839,2088.6,2088.1,9.40487]
[1742836515855,5.55839,2088.6,2088.2,4.78881]
[1742836516447,10.94767,2088.7,2088.3,4.78851]
[1742836516954,6.16,2088.7,2088.3,9.57691]
[1742836518258,6.16,2088.7,2088.3,4.7884]
[1742836518412,6.16,2088.7,2088.5,4.78796]
[1742836518607,6.16,2088.7,2088.2,4.83662108]
[1742836518608,6.16,2089.0,2088.8,4.78736]
[1742836518814,6.16,2089.0,2088.9,4.616]
[1742836521625,10.94697,2089.0,2088.9,4.616]
[1742836521836,11.78794977,2089.0,2088.9,4.616]
[1742836524815,5.57446,2088.7,2088.6,5.05637752]
[1742836525056,11.73446,2088.7,2088.6,5.05637752]
[1742836525760,4.78837,2088.4,2088.2,0.44137752]
[1742836525929,4.78837,2088.4,2088.3,4.615]
[1742836526870,4.78814,2088.5,2088.3,4.615]
[1742836527169,4.788,2088.6,2088.3,4.615]
[1742836527376,6.9468,2088.7,2088.3,9.40348]
[1742836527550,6.16,2088.7,2088.4,4.78833]
[1742836528239,10.94751,2088.8,2088.4,4.78833]
[1742836528430,10.94751,2088.8,2088.4,4.78831]
[1742836528634,6.16,2088.8,2088.5,4.78805]
[1742836529039,6.16,2088.8,2088.6,4.78788]
[1742836529559,6.16,2088.8,2088.5,4.78805]
[1742836529560,5.58788,2089.1,2088.7,4.78766]
[1742836529772,5.58788,2089.1,2088.8,4.616]
[1742836529951,4.78709,2089.0,2088.8,4.616]
[1742836530978,5.58788,2089.1,2088.8,4.616]
[1742836531632,4.78699,2089.0,2088.8,4.616]
[1742836531963,4.7872,2088.9,2088.8,4.616]
[1742836532276,4.78776,2088.7,2088.4,0.44137752]
[1742836532479,4.78776,2088.7,2088.5,4.615]
[1742836532877,5.59645,2088.8,2088.5,4.615]
[1742836533037,4.78775,2088.7,2088.4,0.44137752]
[1742836533379,4.78775,2088.7,2088.6,4.615]
[1742836533781,1.653442,2089.1,2088.6,4.615]
[1742836533967,4.78687,2089.1,2088.7,4.78758]
[1742836534161,9.57382,2089.1,2088.7,4.78758]
[1742836534380,5.60654,2088.9,2088.6,4.615]
[1742836534764,5.60595,2089.1,2088.6,9.40281]
[1742836535091,10.39287,2089.1,2088.7,4.78757]
[1742836535298,4.78703,2089.0,2088.6,9.40281]
[1742836536587,4.78703,2089.0,2088.6,9.84418752]
[1742836537188,4.78703,2089.0,2088.6,5.05637752]
[1742836537485,4.7873,2088.9,2088.6,5.05637752]
[1742836537877,9.57467,2088.9,2088.6,5.05637752]
[1742836538077,4.7873,2088.9,2088.6,4.615]
[1742836538381,5.9921777,2088.9,2088.6,4.615]
[1742836538586,4.78756,2088.8,2088.6,4.615]
[1742836540181,4.78756,2088.8,2088.5,0.44137752]
[1742836540388,9.57519,2088.8,2088.6,4.615]
[1742836540592,4.78766,2088.7,2088.6,4.615]
[1742836540763,4.78789,2088.6,2088.5,0.44137752]
[1742836540962,4.78789,2088.6,2088.5,5.05637752]
[1742836541477,4.78789,2088.6,2088.5,4.615]
[1742836545476,4.78988,2087.8,2086.7,3.0]
[1742836545659,5.61598,2088.2,2087.2,4.7911]
[1742836545975,6.16,2088.2,2087.8,4.78961]
[1742836546184,10.94859,2088.3,2087.9,4.659]
[1742836546365,15.73735,2088.3,2087.9,4.659]
[1742836546704,10.94859,2088.3,2087.9,4.659]
[1742836547068,15.73734,2088.3,2087.9,4.659]
[1742836548898,9.57791,2088.2,2087.9,4.659]
[1742836549694,4.78935,2088.0,2087.6,5.23198274]
[1742836549896,6.16,2088.3,2087.7,9.44485]
[1742836549897,4.78906,2088.1,2087.7,9.44485]
[1742836550201,9.57829,2088.1,2087.7,9.44485]
[1742836550385,4.78906,2088.1,2087.7,14.23472]
[1742836550605,9.57826,2088.1,2087.7,9.44485]
[1742836550776,4.78906,2088.1,2087.7,14.23466]
[1742836550970,4.78906,2088.1,2087.7,9.44481]
[1742836551292,4.78906,2088.1,2087.7,9.4448]
[1742836551496,4.78906,2088.1,2087.7,14.23466]
[1742836551694,4.78906,2088.1,2087.7,9.4448]
[1742836551866,4.78906,2088.1,2087.7,14.23468]
[1742836552068,4.78906,2088.1,2087.7,9.4448]
[1742836552292,9.5778,2088.2,2087.8,4.78964]
[1742836552668,4.78904,2088.1,2087.8,4.78964]
[1742836553077,4.78904,2088.1,2087.7,14.23467]
[1742836553281,4.78904,2088.1,2087.7,9.44481]
[1742836553482,4.78889,2088.2,2087.8,4.78956]
[1742836554081,9.57787,2088.2,2087.8,4.78956]
[1742836554900,4.7893,2088.0,2087.7,9.44494]
[1742836555683,4.78925,2088.1,2087.8,4.78971]
[1742836555884,4.78889,2088.2,2087.8,9.5793]
[1742836556204,15.73751,2088.3,2087.9,4.78936]
[1742836556824,4.78882,2088.2,2087.8,4.7897]
[1742836556986,4.78882,2088.2,2087.8,9.57927]
[1742836557331,10.94875,2088.3,2087.9,4.78944]
[1742836557622,4.78883,2088.2,2087.9,4.78944]
[1742836559003,4.78874,2088.3,2087.9,4.78944]
[1742836559004,4.78867,2088.3,2087.9,4.78944]
[1742836559205,5.56735,2088.6,2088.0,0.04789108]
[1742836559414,4.78775,2088.7,2088.1,4.78904]
[1742836559613,4.78749,2088.8,2088.4,4.78832]
[1742836559921,4.78754,2088.8,2088.4,4.78832]
[1742836560323,10.94722,2088.9,2088.4,0.93371741]
[1742836560501,4.78646,2089.3,2088.8,4.78732]
[1742836560502,10.94662,2089.2,2088.8,4.78732]
[1742836560713,4.78677,2089.1,2088.9,4.658]
[1742836561189,4.78697,2089.0,2088.9,4.658]
[1742836561394,6.360344,2089.0,2088.9,4.658]
[1742836561626,7.155844,2089.0,2088.9,4.658]
[1742836562197,4.78677,2089.1,2088.9,4.658]
[1742836562198,4.7868,2089.1,2088.9,4.658]
[1742836562590,11.75193,2089.2,2088.9,4.658]
[1742836562796,6.16,2089.2,2088.9,9.4451]
[1742836562990,6.16,2089.2,2089.0,4.78681]
[1742836563304,0.005,2089.6,2089.2,4.78639]
[1742836563305,6.9423,2089.6,2089.2,4.78639]
[1742836563518,6.165,2089.6,2089.3,4.78627]
[1742836563712,6.165,2089.6,2089.4,4.664]
[1742836563713,0.005,2089.6,2089.4,4.664]
[1742836563919,0.005,2089.6,2089.4,9.45001]
[1742836564117,0.005,2089.6,2089.4,9.44997]
[1742836564495,0.005,2089.6,2089.5,4.78583]
[1742836566328,0.005,2089.6,2089.5,4.669]
[1742836567400,0.005,2089.6,2089.5,9.45483]
[1742836567634,0.005,2089.6,2089.5,4.669]
[1742836568130,0.005,2089.6,2089.5,9.45483]
[1742836568856,0.005,2089.6,2089.5,12.45483]
[1742836569004,0.005,2089.6,2089.5,43.7908269]
[1742836569635,0.005,2089.6,2089.5,44.22875848]
[1742836571638,0.005,2089.6,2089.5,43.7908269]
[1742836572236,0.005,2089.6,2089.5,37.76083]
[1742836574638,0.005,2089.6,2089.5,33.09183]
[1742836574839,0.005,2089.6,2089.5,25.306]
[1742836575049,0.005,2089.6,2089.5,29.969]
[1742836575928,0.005,2089.6,2089.5,34.75483]
[1742836576333,0.005,2089.6,2089.5,29.969]
[1742836578028,5.748708,2089.6,2089.5,25.306]
[1742836578229,6.505808,2089.6,2089.5,29.969]
[1742836579533,0.005,2089.6,2089.5,29.969]
[1742836581153,4.7906,2089.6,2089.5,29.969]
[1742836581654,0.005,2089.6,2089.5,29.969]
[1742836583752,4.7906,2089.6,2089.5,29.969]
[1742836584131,0.005,2089.6,2089.5,4.663]
[1742836584359,0.005,2089.6,2089.5,9.44883]
[1742836587864,0.005,2089.6,2089.5,4.663]
[1742836588363,4.7906,2089.6,2089.5,4.663]
[1742836589758,4.7906,2089.6,2089.1,5.22663073]
[1742836589759,5.54022,2089.3,2089.1,0.44009073]
[1742836590063,4.78652,2089.2,2089.1,0.44009073]
[1742836590428,9.57323,2089.2,2089.0,25.298]
[1742836590627,4.78675,2089.1,2089.0,25.298]
[1742836590858,4.78675,2089.1,2089.0,29.958]
[1742836591062,4.78675,2089.1,2089.0,25.298]
[1742836591239,4.78675,2089.1,2089.0,29.956]
[1742836591440,5.819472,2089.1,2089.0,25.298]
[1742836591639,4.78721,2088.9,2088.5,4.78793]
[1742836591832,4.78703,2089.0,2088.6,9.45179]
[1742836592032,6.9292,2089.1,2088.8,4.78742]
[1742836592444,11.71595,2089.1,2088.8,4.78742]
[1742836593064,4.78698,2089.0,2088.6,9.45171]
[1742836593447,4.78698,2089.0,2088.6,14.23943]
[1742836593750,4.78698,2089.0,2088.6,9.45171]
[1742836593948,11.71598,2089.1,2088.7,4.78763]
[1742836594328,4.78702,2089.0,2088.6,9.45171]
[1742836594532,5.54636,2088.9,2088.7,4.662]
[1742836594761,0.7591,2088.9,2088.7,4.662]
[1742836595137,4.78743,2088.8,2088.7,4.662]
[1742836595341,0.7591,2088.7,2088.4,0.44105086]
[1742836595664,4.78798,2088.6,2088.4,0.44105086]
[1742836595864,5.54683,2088.7,2088.4,0.44105086]
[1742836596237,5.54683,2088.7,2088.4,5.22939086]
[1742836596437,5.54683,2088.7,2088.4,0.44105086]